[Event "Faroese Team Championship 2022"]
[Site "Torshavn"]
[Date "2022.03.26"]
[Round "10.10"]
[White "Brekka, Martin"]
[Black "Johansen, Haldur Suni"]
[Result "1/2-1/2"]
[ECO "B32"]
[WhiteElo "2055"]
[BlackElo "1985"]
[Annotator "ChessBase"]
[PlyCount "113"]
[EventDate "2022.03.23"]
[EventType "team-tourn"]
[EventCountry "FAI"]
[SourceTitle "playchess.com"]
[Source "ChessBase"]
[SourceQuality "1"]
[TimeControl "40/5400+30:900+30"]

1. d4 {[%emt 0:00:07]} c5 {[%emt 0:00:36]} 2. Nf3 {[%emt 0:00:54]} cxd4 {[%emt 0:01:23]} 3. Nxd4 {[%emt 0:00:32]} e5 {[%emt 0:00:18]} 4. Nb3 {[%emt 0:00:53]} Nc6 {[%emt 0:00:46]} 5. e4 {[%emt 0:00:56]} Nf6 {[%emt 0:05:26]} 6. Bc4 {[%emt 0:09:01]} h6 {[%emt 0:05:51]} 7. O-O {[%emt 0:04:59]} Be7 {[%emt 0:01:30]} 8. Nc3 {[%emt 0:01:40]} O-O {[%emt 0:00:22]} 9. Be3 {[%emt 0:00:58]} d6 {[%emt 0:01:06]} 10. Qe2 {[%emt 0:06:49]} a6 {[%emt 0:05:45]} 11. a4 {[%emt 0:01:18]} Na5 {[%emt 0:00:59]} 12. Nxa5 {[%emt 0:03:40]} Qxa5 {[%emt 0:00:18]} 13. Nd5 {[%emt 0:04:16]} Nxd5 {[%emt 0:04:26]} 14. Bxd5 {[%emt 0:00:40]} Qc7 {[%emt 0:07:28]} 15. f4 {[%emt 0:06:00]} exf4 {[%emt 0:06:37]} 16. Bxf4 {[%emt 0:01:42]} Be6 {[%emt 0:01:27]} 17. c4 {[%emt 0:01:58]} Bxd5 {[%emt 0:16:14]} 18. exd5 {[%emt 0:02:56]} Qd7 {[%emt 0:01:25]} 19. Ra3 {[%emt 0:05:14]} Rae8 {[%emt 0:05:26]} 20. Qh5 {[%emt 0:04:40]} Bf6 {[%emt 0:09:42]} 21. Rh3 {[%emt 0:03:01]} Bd4+ {[%emt 0:05:25]} 22. Kh1 {[%emt 0:00:42]} Qe7 {[%emt 0:05:00]} 23. Qf5 {[%emt 0:10:33]} g6 {[%emt 0:07:10]} 24. Qd3 {[%emt 0:03:09]} Bg7 {[%emt 0:05:02]} 25. Bxh6 {[%emt 0:05:51]} Bxh6 {[%emt 0:00:12]} 26. Rxh6 {[%emt 0:00:01]} Qe2 {[%emt 0:00:03]} 27. Qxe2 {[%emt 0:06:25]} Rxe2 {[%emt 0:00:02]} 28. b3 {[%emt 0:00:33]} Re3 {[%emt 0:00:20]} 29. Rh3 {[%emt 0:01:52]} Rxh3 {[%emt 0:00:14]} 30. gxh3 {[%emt 0:00:01]} Re8 {[%emt 0:00:24]} 31. Rf6 {[%emt 0:01:42]} Rd8 {[%emt 0:00:10]} 32. Kg2 {[%emt 0:00:44]} Kg7 {[%emt 0:00:20]} 33. Rf3 {[%emt 0:00:30]} Re8 {[%emt 0:00:33]} 34. Kf2 {[%emt 0:00:17]} Rh8 {[%emt 0:00:46]} 35. a5 {[%emt 0:00:56]} Rh4 {[%emt 0:01:39]} 36. Ke3 {[%emt 0:00:20]} Kf8 {[%emt 0:00:27]} 37. Kd3 {[%emt 0:00:20]} Ke7 {[%emt 0:00:13]} 38. Kc3 {[%emt 0:01:53]} Re4 {[%emt 0:00:33]} 39. Kd3 {[%emt 0:00:39]} Rh4 {[%emt 0:00:02]} 40. b4 {[%emt 0:00:00]} Ke8 {[%emt 0:00:00]} 41. Kc3 {[%emt 0:02:24]} Re4 {[%emt 0:04:39]} 42. c5 {[%emt 0:05:56]} dxc5 {[%emt 0:02:56]} 43. bxc5 {[%emt 0:02:30]} Ra4 {[%emt 0:01:50]} 44. Rf6 {[%emt 0:04:55]} Rxa5 {[%emt 0:03:24]} 45. Kd4 {[%emt 0:00:31]} Rb5 {[%emt 0:01:49]} 46. c6 {[%emt 0:03:16]} bxc6 {[%emt 0:01:45]} 47. dxc6 {[%emt 0:01:27]} Ke7 {[%emt 0:01:25]} 48. Rxf7+ {[%emt 0:06:04]} Kd8 {[%emt 0:00:15]} 49. Ra7 {[%emt 0:02:04]} a5 {[%emt 0:01:57]} 50. Rg7 {[%emt 0:00:57]} g5 {[%emt 0:00:11]} 51. Kc4 {[%emt 0:00:46]} Rf5 {[%emt 0:00:13]} 52. Rh7 {[%emt 0:00:32]} Kc8 {[%emt 0:00:33]} 53. Rg7 {[%emt 0:01:03]} Kd8 {[%emt 0:01:01]} 54. Kd4 {[%emt 0:00:26]} Kc8 {[%emt 0:00:13]} 55. Ra7 {[%emt 0:00:36]} Kb8 {[%emt 0:00:23]} 56. Rg7 {[%emt 0:00:05]} Kc8 {[%emt 0:00:05]} 57. h4 {[%emt 0:00:23]} 1/2-1/2

[Event "Faroese Team Championship 2022"]
[Site "Torshavn"]
[Date "2022.03.26"]
[Round "10.11"]
[White "Skaale, Janus"]
[Black "Olsen, Alfred A."]
[Result "1/2-1/2"]
[ECO "B94"]
[WhiteElo "1883"]
[BlackElo "1798"]
[Annotator "NA"]
[PlyCount "71"]
[EventDate "2022.03.23"]
[EventType "team-tourn"]
[EventCountry "FAI"]
[SourceTitle "playchess.com"]
[Source "ChessBase"]
[SourceQuality "1"]
[TimeControl "40/5400+30:900+30"]

1. e4 {[%emt 0:00:33]} c5 {[%emt 0:00:35]} 2. Nf3 {[%emt 0:00:15]} d6 {[%emt 0:00:37]} 3. d4 {[%emt 0:00:23]} cxd4 {[%emt 0:00:11]} 4. Nxd4 {[%emt 0:00:06]} Nf6 {[%emt 0:00:32]} 5. Nc3 {[%emt 0:00:08]} a6 {[%emt 0:00:47]} 6. Bg5 {[%emt 0:00:44]} e5 {[%emt 0:01:23]} (6... e6 $11) 7. Nb3 {[%emt 0:06:41]} Be7 {[%emt 0:00:23]} 8. Qd2 {[%emt 0:00:37]} Be6 {[%emt 0:02:45]} 9. O-O-O {[%emt 0:00:43]} (9. f4 $142) 9... Nbd7 {[%emt 0:02:06]} 10. f4 {[%emt 0:01:31]} h6 {[%emt 0:14:43]} 11. Bxf6 {[%emt 0:01:22]} Nxf6 {[%emt 0:00:24]} 12. Kb1 {[%emt 0:00:57]} O-O {[%emt 0:08:30]} 13. h3 {[%emt 0:02:23]} b5 {[%emt 0:02:43]} 14. Qe3 {[%emt 0:02:21]} Qc7 {[%emt 0:04:40]} 15. f5 {[%emt 0:01:22]} Bc4 {[%emt 0:02:11]} 16. g4 {[%emt 0:09:57]} Rfc8 $11 {[%emt 0:03:38]} 17. Bd3 {[%emt 0:02:50]} d5 {[%emt 0:05:45]} 18. exd5 {[%emt 0:02:05]} Nxd5 {[%emt 0:00:30]} 19. Nxd5 {[%emt 0:00:51]} Bxd5 {[%emt 0:01:10]} 20. Rhe1 {[%emt 0:01:32]} f6 {[%emt 0:03:22]} 21. h4 {[%emt 0:03:36]} a5 {[%emt 0:05:08]} 22. Be4 {[%emt 0:11:39]} Bxe4 {[%emt 0:02:19]} 23. Qxe4 {[%emt 0:00:02]} a4 {[%emt 0:00:51]} 24. Nd2 {[%emt 0:06:13]} a3 {[%emt 0:01:26]} 25. g5 {[%emt 0:03:55]} fxg5 {[%emt 0:05:14]} 26. hxg5 {[%emt 0:01:13]} Bxg5 {[%emt 0:00:14]} 27. Nf3 {[%emt 0:03:50]} Bf6 {[%emt 0:00:35]} 28. Re2 {[%emt 0:02:03]} axb2 {[%emt 0:03:32]} 29. Nxe5 {[%emt 0:06:24]} Kh7 {[%emt 0:08:19]} 30. Rd7 {[%emt 0:09:49]} Qa5 {[%emt 0:04:20]} 31. Rxg7+ {[%emt 0:00:55]} Kh8 {[%emt 0:14:06]} 32. Qd5 {[%emt 0:08:57]} Bxg7 {[%emt 0:01:55]} 33. Nf7+ {[%emt 0:02:28]} Kh7 {[%emt 0:00:08]} 34. Ng5+ {[%emt 0:02:26]} Kh8 {[%emt 0:00:24]} 35. Nf7+ {[%emt 0:03:34]} Kh7 {[%emt 0:00:09]} 36. Ng5+ {[%emt 0:02:08]} 1/2-1/2

[Event "Faroese Team Championship 2022"]
[Site "Torshavn"]
[Date "2022.03.26"]
[Round "10.12"]
[White "Durhuus, Kari O."]
[Black "Solsker, Tummas Martin"]
[Result "1/2-1/2"]
[ECO "C32"]
[WhiteElo "1751"]
[BlackElo "1869"]
[Annotator "NA"]
[PlyCount "187"]
[EventDate "2022.03.23"]
[EventType "team-tourn"]
[EventCountry "FAI"]
[SourceTitle "playchess.com"]
[Source "ChessBase"]
[SourceQuality "1"]
[TimeControl "40/5400+30:900+30"]

1. e4 {[%emt 0:00:30]} e5 {[%emt 0:00:22]} 2. f4 {[%emt 0:00:00]} d5 {[%emt 0:01:35]} 3. exd5 {[%emt 0:00:03]} e4 {[%emt 0:01:07]} 4. d3 {[%emt 0:01:13]} Nf6 {[%emt 0:20:20]} 5. dxe4 {[%emt 0:02:09]} Nxe4 {[%emt 0:01:02]} 6. Be3 {[%emt 0:03:30]} ({Weaker is} 6. Qd4 Qh4+ 7. g3 Nxg3 8. Qe5+ Be7 $17) (6. Nf3 $1 $14) 6... Qh4+ $11 {[%emt 0:08:45]} (6... Bd6 $142) 7. g3 {[%emt 0:01:05]} Nxg3 $1 {[%emt 0:02:16]} 8. Nf3 {[%emt 0:00:13]} Qe7 {[%emt 0:09:34]} 9. hxg3 {[%emt 0:01:05]} Qxe3+ {[%emt 0:01:04]} 10. Qe2 {[%emt 0:00:34]} Bc5 {[%emt 0:04:47]} 11. Qxe3+ {[%emt 0:02:49]} Bxe3 {[%emt 0:00:07]} 12. Bd3 {[%emt 0:12:34]} h6 {[%emt 0:14:34]} 13. Nc3 {[%emt 0:06:20]} O-O {[%emt 0:07:12]} 14. Nb5 {[%emt 0:26:53]} Na6 {[%emt 0:02:25]} 15. Ne5 {[%emt 0:07:59]} Re8 {[%emt 0:08:46]} 16. Kf1 {[%emt 0:03:24]} Bc5 {[%emt 0:03:04]} 17. a3 {[%emt 0:06:16]} c6 {[%emt 0:01:35]} 18. dxc6 {[%emt 0:03:35]} bxc6 {[%emt 0:00:10]} 19. Nc3 {[%emt 0:02:15]} Bd4 {[%emt 0:01:42]} 20. Re1 {[%emt 0:06:52]} Nc5 {[%emt 0:04:07]} 21. Bc4 {[%emt 0:00:43]} Rb8 {[%emt 0:01:13]} 22. Bxf7+ {[%emt 0:00:40]} Kf8 {[%emt 0:00:15]} 23. Bxe8 {[%emt 0:00:29]} Ba6+ {[%emt 0:00:17]} 24. Nd3 {[%emt 0:04:55]} Nxd3 {[%emt 0:01:14]} 25. cxd3 {[%emt 0:00:20]} Rxb2 {[%emt 0:00:23]} 26. Ne2 {[%emt 0:01:09]} Bxd3 {[%emt 0:00:26]} 27. Bh5 {[%emt 0:00:21]} Bc3 {[%emt 0:01:05]} 28. Rd1 {[%emt 0:01:27]} Bb5 {[%emt 0:01:22]} 29. Rh2 {[%emt 0:01:40]} Ra2 {[%emt 0:01:14]} 30. Kg1 {[%emt 0:00:32]} Bf6 {[%emt 0:00:15]} 31. Bg4 {[%emt 0:01:15]} Rxa3 {[%emt 0:00:28]} 32. Kh1 {[%emt 0:01:02]} c5 {[%emt 0:01:01]} 33. Kg2 {[%emt 0:00:31]} Ra2 {[%emt 0:01:10]} 34. Kh3 {[%emt 0:00:23]} a5 {[%emt 0:01:31]} 35. Ng1 {[%emt 0:00:34]} Rxh2+ {[%emt 0:00:49]} 36. Kxh2 {[%emt 0:00:20]} a4 {[%emt 0:00:04]} 37. Nf3 {[%emt 0:00:51]} Bb2 {[%emt 0:00:47]} 38. Rd8+ {[%emt 0:00:52]} Ke7 {[%emt 0:00:03]} 39. Rb8 {[%emt 0:00:27]} a3 {[%emt 0:00:05]} 40. Rxb5 {[%emt 0:00:00]} a2 {[%emt 0:00:00]} 41. Rb7+ {[%emt 0:05:01]} Kf8 {[%emt 0:05:37]} 42. Ra7 {[%emt 0:02:01]} a1=Q {[%emt 0:00:20]} 43. Rxa1 {[%emt 0:00:04]} Bxa1 {[%emt 0:00:08]} 44. Be6 {[%emt 0:00:39]} Ke7 {[%emt 0:00:24]} 45. Bc4 {[%emt 0:00:29]} Kf6 {[%emt 0:01:47]} 46. Nd2 {[%emt 0:01:35]} Bd4 {[%emt 0:02:04]} 47. g4 {[%emt 0:02:03]} Ke7 {[%emt 0:02:56]} 48. Kg3 {[%emt 0:00:24]} Kf6 {[%emt 0:02:15]} 49. Ne4+ {[%emt 0:00:38]} Ke7 {[%emt 0:00:12]} 50. Kf3 {[%emt 0:01:30]} Kf8 {[%emt 0:00:55]} 51. Nd6 {[%emt 0:01:03]} g6 {[%emt 0:00:35]} 52. Ke4 {[%emt 0:00:50]} Kg7 {[%emt 0:00:45]} 53. Nb5 {[%emt 0:01:58]} Bg1 {[%emt 0:00:26]} 54. Nc7 {[%emt 0:00:29]} Kf6 {[%emt 0:01:00]} 55. Ne8+ {[%emt 0:00:12]} Ke7 {[%emt 0:00:29]} 56. Nc7 {[%emt 0:00:47]} Kf6 {[%emt 0:00:06]} 57. Nd5+ {[%emt 0:00:04]} Kg7 {[%emt 0:00:11]} 58. Ke5 {[%emt 0:01:13]} Bh2 {[%emt 0:00:17]} 59. Ke4 {[%emt 0:00:29]} Bg1 {[%emt 0:00:07]} 60. Ne3 {[%emt 0:00:14]} Kf6 {[%emt 0:00:28]} 61. Ng2 {[%emt 0:00:33]} Bd4 {[%emt 0:00:49]} 62. Kd5 {[%emt 0:00:04]} Bf2 {[%emt 0:00:36]} 63. Bd3 {[%emt 0:00:11]} Bd4 {[%emt 0:01:31]} 64. Ne1 {[%emt 0:00:48]} Be3 {[%emt 0:00:36]} 65. Ke4 {[%emt 0:00:20]} Bd4 {[%emt 0:01:27]} 66. Nf3 {[%emt 0:00:13]} Bf2 {[%emt 0:00:32]} 67. Ne5 {[%emt 0:00:42]} Bd4 {[%emt 0:01:08]} 68. Kf3 {[%emt 0:01:22]} g5 {[%emt 0:02:07]} 69. Nd7+ {[%emt 0:02:51]} Ke7 {[%emt 0:00:39]} 70. Bf5 {[%emt 0:00:39]} gxf4 {[%emt 0:00:27]} 71. Kxf4 {[%emt 0:00:24]} Bg1 {[%emt 0:00:52]} 72. Nb6 {[%emt 0:00:49]} Kf6 {[%emt 0:00:29]} 73. Nd5+ {[%emt 0:00:16]} Kg7 {[%emt 0:00:12]} 74. Ke5 {[%emt 0:00:21]} Bf2 {[%emt 0:00:47]} 75. Nf4 {[%emt 0:00:22]} Bg3 {[%emt 0:00:43]} 76. Ke4 {[%emt 0:00:19]} Bf2 {[%emt 0:00:42]} 77. Kd5 {[%emt 0:00:25]} Be3 {[%emt 0:00:33]} 78. Nh5+ {[%emt 0:00:52]} Kf7 {[%emt 0:00:14]} 79. Ng3 {[%emt 0:00:37]} Kf6 {[%emt 0:00:22]} 80. Ne4+ {[%emt 0:00:04]} Kf7 {[%emt 0:00:20]} 81. Kd6 {[%emt 0:00:59]} Bd4 {[%emt 0:00:28]} 82. Ng3 {[%emt 0:00:16]} Bg1 {[%emt 0:00:28]} 83. Nh5 {[%emt 0:00:23]} Be3 {[%emt 0:00:14]} 84. Kd5 {[%emt 0:00:15]} Bf2 {[%emt 0:00:29]} 85. Ke5 {[%emt 0:00:41]} Bd4+ {[%emt 0:00:13]} 86. Ke4 {[%emt 0:00:26]} Bf2 {[%emt 0:00:14]} 87. Nf4 {[%emt 0:00:38]} Kf6 {[%emt 0:00:24]} 88. Nd3 {[%emt 0:00:33]} Bg1 {[%emt 0:00:25]} 89. Nf4 {[%emt 0:00:16]} Bd4 {[%emt 0:00:25]} 90. Ne6 {[%emt 0:00:22]} Bg1 {[%emt 0:00:10]} 91. Kf3 {[%emt 0:00:27]} h5 {[%emt 0:01:01]} 92. Ke4 {[%emt 0:02:23]} hxg4 {[%emt 0:00:26]} 93. Bxg4 {[%emt 0:00:09]} Bd4 {[%emt 0:00:11]} 94. Nxd4 {[%emt 0:01:19]} 1/2-1/2